[Event "*** Qualifier 3: Titled Tuesday 3|2 Blitz"]
[Site "Chess.com"]
[Date "2017.04.18"]
[Round "5"]
[White "Keranke"]
[Black "GMMarcinDziuba"]
[Result "1-0"]
[WhiteElo "2629"]
[BlackElo "2532"]
[TimeControl "180+2"]
[EndTime "14:05:57 PDT"]
[Termination "Keranke won by resignation"]

1. d4 {[%clk 0:03:02]} 1... Nf6 {[%clk 0:02:59]} 2. Nf3 {[%clk 0:03:02.3]} 2...
d5 {[%clk 0:02:59.6]} 3. Bf4 {[%clk 0:03:03.7]} 3... c6 {[%clk 0:02:59]} 4. e3
{[%clk 0:03:04.8]} 4... Bf5 {[%clk 0:02:57.4]} 5. c4 {[%clk 0:03:05.3]} 5... e6
{[%clk 0:02:58.4]} 6. Nc3 {[%clk 0:03:05.8]} 6... Nbd7 {[%clk 0:02:59]} 7. Qb3
{[%clk 0:03:07]} 7... Qc8 {[%clk 0:02:57.1]} 8. h3 {[%clk 0:03:06.6]} 8... Be7
{[%clk 0:02:57.4]} 9. Be2 {[%clk 0:03:06.5]} 9... Ne4 {[%clk 0:02:55.1]} 10. O-O
{[%clk 0:03:03.7]} 10... O-O {[%clk 0:02:55.1]} 11. Rac1 {[%clk 0:03:03.8]}
11... Nxc3 {[%clk 0:02:38.4]} 12. bxc3 {[%clk 0:03:04.4]} 12... a5 {[%clk
0:02:23.7]} 13. cxd5 {[%clk 0:03:03.1]} 13... a4 {[%clk 0:02:20.3]} 14. Qd1
{[%clk 0:03:03.1]} 14... exd5 {[%clk 0:02:17.8]} 15. c4 {[%clk 0:02:22.7]} 15...
Ba3 {[%clk 0:02:17.1]} 16. Nh4 {[%clk 0:02:18.2]} 16... Be4 {[%clk 0:02:02.6]}
17. f3 {[%clk 0:02:19.4]} 17... Bxc1 {[%clk 0:01:56]} 18. fxe4 {[%clk
0:02:20.5]} 18... Bb2 {[%clk 0:01:47.1]} 19. exd5 {[%clk 0:02:15.6]} 19... cxd5
{[%clk 0:01:49]} 20. Nf5 {[%clk 0:02:09.1]} 20... Qe8 {[%clk 0:01:14.8]} 21.
cxd5 {[%clk 0:02:01.2]} 21... g6 {[%clk 0:01:01]} 22. Nd6 {[%clk 0:01:57.7]}
22... Qe7 {[%clk 0:01:01.9]} 23. Nc4 {[%clk 0:01:52.1]} 23... Ba3 {[%clk
0:00:48.3]} 24. d6 {[%clk 0:01:52]} 24... Qe6 {[%clk 0:00:43.9]} 25. d5 {[%clk
0:01:52.6]} 25... Qf6 {[%clk 0:00:36.9]} 26. Nxa3 {[%clk 0:01:46.7]} 26... Qb2
{[%clk 0:00:37.7]} 27. Nb5 {[%clk 0:01:16.2]} 27... Qxa2 {[%clk 0:00:36.8]} 28.
Nc7 {[%clk 0:01:14.2]} 28... Ra5 {[%clk 0:00:24.7]} 29. Bb5 {[%clk 0:01:15.3]}
29... Nb6 {[%clk 0:00:17.5]} 30. Qd4 {[%clk 0:01:14.5]} 30... Rxb5 {[%clk
0:00:09]} 31. Nxb5 {[%clk 0:01:15]} 31... Nxd5 {[%clk 0:00:09.6]} 32. Bh6 {[%clk
0:01:15.7]} 1-0

[Event "*** Qualifier 3: Titled Tuesday 3|2 Blitz"]
[Site "Chess.com"]
[Date "2017.04.18"]
[Round "5"]
[White "XDPS"]
[Black "Astaneh"]
[Result "1-0"]
[WhiteElo "2550"]
[BlackElo "2496"]
[TimeControl "180+2"]
[EndTime "14:06:12 PDT"]
[Termination "XDPS won by resignation"]

1. e4 {[%clk 0:03:02]} 1... e5 {[%clk 0:02:58.1]} 2. Nf3 {[%clk 0:03:02.5]} 2...
Nc6 {[%clk 0:02:58.9]} 3. Bb5 {[%clk 0:03:04]} 3... Nf6 {[%clk 0:02:58.8]} 4.
O-O {[%clk 0:03:04.6]} 4... Nxe4 {[%clk 0:02:58.6]} 5. d4 {[%clk 0:03:06]} 5...
Nd6 {[%clk 0:02:59.7]} 6. Bxc6 {[%clk 0:03:06.6]} 6... dxc6 {[%clk 0:03:01.6]}
7. dxe5 {[%clk 0:03:07.8]} 7... Nf5 {[%clk 0:03:03.3]} 8. Qxd8+ {[%clk
0:03:08.8]} 8... Kxd8 {[%clk 0:03:05.2]} 9. h3 {[%clk 0:03:10.2]} 9... h6 {[%clk
0:03:03.7]} 10. Nc3 {[%clk 0:03:09.7]} 10... Ne7 {[%clk 0:03:02.6]} 11. Rd1+
{[%clk 0:03:08.6]} 11... Ke8 {[%clk 0:03:03.3]} 12. b3 {[%clk 0:03:09.6]} 12...
Ng6 {[%clk 0:03:02.6]} 13. Bb2 {[%clk 0:03:11.1]} 13... b6 {[%clk 0:02:56.9]}
14. Ne2 {[%clk 0:03:10.6]} 14... c5 {[%clk 0:02:55.6]} 15. Nc3 {[%clk
0:03:07.7]} 15... Bb7 {[%clk 0:02:52.2]} 16. Nd5 {[%clk 0:03:08.7]} 16... Bxd5
{[%clk 0:02:42.7]} 17. Rxd5 {[%clk 0:03:09.4]} 17... Nf4 {[%clk 0:02:43.3]} 18.
Rd2 {[%clk 0:03:08.1]} 18... Be7 {[%clk 0:02:41.7]} 19. Rad1 {[%clk 0:03:06.6]}
19... Rd8 {[%clk 0:02:38.9]} 20. Rxd8+ {[%clk 0:02:45.2]} 20... Bxd8 {[%clk
0:02:39.7]} 21. Nd2 {[%clk 0:02:45.1]} 21... h5 {[%clk 0:02:25.4]} 22. h4 {[%clk
0:02:37.8]} 22... Ne6 {[%clk 0:02:10.2]} 23. g3 {[%clk 0:02:38.3]} 23... g5
{[%clk 0:02:11.6]} 24. hxg5 {[%clk 0:02:39.1]} 24... Bxg5 {[%clk 0:02:13.5]} 25.
Ne4 {[%clk 0:02:37.2]} 25... h4 {[%clk 0:02:13.7]} 26. f4 {[%clk 0:02:34.6]}
26... Be7 {[%clk 0:02:04.3]} 27. f5 {[%clk 0:02:35.6]} 27... Nd4 {[%clk
0:01:49.9]} 28. Bxd4 {[%clk 0:02:16.3]} 28... cxd4 {[%clk 0:01:50.7]} 29. Kg2
{[%clk 0:02:08.4]} 29... hxg3 {[%clk 0:01:49.7]} 30. Kxg3 {[%clk 0:02:05.9]}
30... c5 {[%clk 0:01:48.2]} 31. Rf1 {[%clk 0:01:42.1]} 31... Rg8+ {[%clk
0:01:41.2]} 32. Kf3 {[%clk 0:01:41.1]} 32... Rh8 {[%clk 0:01:42.7]} 33. a4
{[%clk 0:01:20.9]} 33... Rh3+ {[%clk 0:01:31.4]} 34. Kg4 {[%clk 0:01:21.9]}
34... Re3 {[%clk 0:01:30]} 35. Kf4 {[%clk 0:01:22.9]} 35... Kd7 {[%clk
0:01:08.9]} 36. Rh1 {[%clk 0:01:14]} 36... Re2 {[%clk 0:00:47.6]} 37. Rh7 {[%clk
0:01:13.7]} 37... Rxc2 {[%clk 0:00:47.6]} 38. Rxf7 {[%clk 0:01:13.3]} 38... Ke8
{[%clk 0:00:48.1]} 39. e6 {[%clk 0:01:12.3]} 39... Rd2 {[%clk 0:00:33.5]} 40.
Nxd2 {[%clk 0:01:12.3]} 1-0

[Event "*** Qualifier 3: Titled Tuesday 3|2 Blitz"]
[Site "Chess.com"]
[Date "2017.04.18"]
[Round "5"]
[White "chesstatour"]
[Black "NMJeevanK"]
[Result "0-1"]
[WhiteElo "1951"]
[BlackElo "2129"]
[TimeControl "180+2"]
[EndTime "14:06:15 PDT"]
[Termination "NMJeevanK won on time"]

1. e4 {[%clk 0:03:02]} 1... e5 {[%clk 0:03:01.1]} 2. f4 {[%clk 0:02:57.1]} 2...
d5 {[%clk 0:03:01.4]} 3. exd5 {[%clk 0:02:52.6]} 3... exf4 {[%clk 0:03:02.8]} 4.
Nf3 {[%clk 0:02:50]} 4... Nf6 {[%clk 0:03:03.8]} 5. Nc3 {[%clk 0:02:46.6]} 5...
c6 {[%clk 0:03:04]} 6. dxc6 {[%clk 0:02:44]} 6... Nxc6 {[%clk 0:03:05.9]} 7. Bb5
{[%clk 0:02:40.9]} 7... Be7 {[%clk 0:03:02.1]} 8. O-O {[%clk 0:02:38]} 8... O-O
{[%clk 0:03:02.1]} 9. Kh1 {[%clk 0:02:38.3]} 9... Bf5 {[%clk 0:03:00.2]} 10. d3
{[%clk 0:02:38.8]} 10... Rc8 {[%clk 0:03:00]} 11. Bxf4 {[%clk 0:02:34.1]} 11...
Bg4 {[%clk 0:02:50.3]} 12. Bxc6 {[%clk 0:02:23.2]} 12... Rxc6 {[%clk 0:02:52.2]}
13. Qe1 {[%clk 0:02:23.1]} 13... Bb4 {[%clk 0:02:51.8]} 14. Bd2 {[%clk
0:02:01.4]} 14... Re8 {[%clk 0:02:40]} 15. Qh4 {[%clk 0:01:58.8]} 15... Qa5
{[%clk 0:02:31.6]} 16. Bg5 {[%clk 0:01:47.4]} 16... Bxf3 {[%clk 0:02:21.7]} 17.
Rxf3 {[%clk 0:01:20.7]} 17... Bxc3 {[%clk 0:02:22.7]} 18. bxc3 {[%clk
0:01:18.7]} 18... Qxc3 {[%clk 0:02:24.6]} 19. Raf1 {[%clk 0:01:07.1]} 19... Ree6
{[%clk 0:02:11.8]} 20. d4 {[%clk 0:00:51.4]} 20... Qxc2 {[%clk 0:01:55.1]} 21.
d5 {[%clk 0:00:40.3]} 21... Rc4 {[%clk 0:01:40.2]} 22. dxe6 {[%clk 0:00:14]}
22... Rxh4 {[%clk 0:01:39.1]} 23. exf7+ {[%clk 0:00:13.4]} 23... Kxf7 {[%clk
0:01:39]} 24. Bxh4 {[%clk 0:00:14.6]} 24... Qxa2 {[%clk 0:01:36.5]} 25. Bxf6
{[%clk 0:00:14.7]} 25... gxf6 {[%clk 0:01:38.4]} 26. Rxf6+ {[%clk 0:00:15.6]}
26... Ke7 {[%clk 0:01:31.5]} 27. h3 {[%clk 0:00:12.5]} 27... a5 {[%clk
0:01:30.4]} 28. R6f2 {[%clk 0:00:10]} 28... Qc4 {[%clk 0:01:23.5]} 29. Re1+
{[%clk 0:00:10.6]} 29... Kd6 {[%clk 0:01:23.1]} 30. Rf6+ {[%clk 0:00:08.7]}
30... Kc7 {[%clk 0:01:20.7]} 31. Re7+ {[%clk 0:00:07]} 31... Kb8 {[%clk
0:01:20.5]} 32. Rff7 {[%clk 0:00:08.3]} 32... Qb3 {[%clk 0:00:58]} 33. Rxh7
{[%clk 0:00:02.7]} 33... a4 {[%clk 0:00:59.3]} 0-1

[Event "*** Qualifier 3: Titled Tuesday 3|2 Blitz"]
[Site "Chess.com"]
[Date "2017.04.18"]
[Round "5"]
[White "aa175"]
[Black "rithwik2002"]
[Result "0-1"]
[WhiteElo "1834"]
[BlackElo "1793"]
[TimeControl "180+2"]
[EndTime "14:06:17 PDT"]
[Termination "rithwik2002 won by checkmate"]

1. e4 {[%clk 0:03:02]} 1... d5 {[%clk 0:02:58.1]} 2. exd5 {[%clk 0:02:57.6]}
2... Qxd5 {[%clk 0:03:00]} 3. Nc3 {[%clk 0:02:56.6]} 3... Qd8 {[%clk 0:03:00.3]}
4. Nf3 {[%clk 0:02:57.1]} 4... Nf6 {[%clk 0:03:01.2]} 5. d4 {[%clk 0:02:58]}
5... a6 {[%clk 0:03:00.5]} 6. Bf4 {[%clk 0:02:58.8]} 6... e6 {[%clk 0:03:00.9]}
7. h3 {[%clk 0:02:52.9]} 7... b5 {[%clk 0:03:00.1]} 8. Bd3 {[%clk 0:02:50]} 8...
Bb7 {[%clk 0:03:00.2]} 9. O-O {[%clk 0:02:49.2]} 9... Be7 {[%clk 0:02:59.8]} 10.
a3 {[%clk 0:02:31.9]} 10... O-O {[%clk 0:02:57.8]} 11. Qe2 {[%clk 0:02:25.1]}
11... Nbd7 {[%clk 0:02:53.7]} 12. Rad1 {[%clk 0:02:18.1]} 12... Qc8 {[%clk
0:02:48.2]} 13. Ne5 {[%clk 0:02:13]} 13... c5 {[%clk 0:02:43.5]} 14. Ne4 {[%clk
0:01:07.2]} 14... c4 {[%clk 0:02:21.1]} 15. Nxd7 {[%clk 0:00:14.8]} 15... Nxd7
{[%clk 0:01:57]} 16. Bd6 {[%clk 0:00:04.5]} 16... cxd3 {[%clk 0:01:55.3]} 17.
Qxd3 {[%clk 0:00:03]} 17... Bxd6 {[%clk 0:01:51.2]} 18. Nxd6 {[%clk 0:00:03.1]}
18... Qc6 {[%clk 0:01:52.7]} 19. Nxb7 {[%clk 0:00:03.7]} 19... Qxb7 {[%clk
0:01:54.6]} 20. d5 {[%clk 0:00:05.1]} 20... exd5 {[%clk 0:01:53.5]} 21. Qxd5
{[%clk 0:00:07]} 21... Qxd5 {[%clk 0:01:53]} 22. Rxd5 {[%clk 0:00:08.9]} 22...
Nf6 {[%clk 0:01:54.1]} 23. Rd6 {[%clk 0:00:09.8]} 23... Rfd8 {[%clk 0:01:55.6]}
24. Rc6 {[%clk 0:00:08.5]} 24... Rdc8 {[%clk 0:01:54.7]} 25. Rxc8+ {[%clk
0:00:06]} 25... Rxc8 {[%clk 0:01:56.6]} 26. c3 {[%clk 0:00:07.5]} 26... Kf8
{[%clk 0:01:56.6]} 27. Re1 {[%clk 0:00:07.7]} 27... Re8 {[%clk 0:01:56.2]} 28.
Kf1 {[%clk 0:00:07.8]} 28... Rxe1+ {[%clk 0:01:55.8]} 29. Kxe1 {[%clk
0:00:08.8]} 29... Ke7 {[%clk 0:01:57.7]} 30. Ke2 {[%clk 0:00:09.9]} 30... Kd6
{[%clk 0:01:59]} 31. Ke3 {[%clk 0:00:11.4]} 31... Kc5 {[%clk 0:02:00.3]} 32. Kd3
{[%clk 0:00:12.5]} 32... a5 {[%clk 0:01:57.9]} 33. b4+ {[%clk 0:00:14.4]} 33...
axb4 {[%clk 0:01:58.7]} 34. axb4+ {[%clk 0:00:16.3]} 34... Kd5 {[%clk
0:01:59.8]} 35. f4 {[%clk 0:00:16.1]} 35... Ne4 {[%clk 0:01:59.9]} 36. h4 {[%clk
0:00:12.5]} 36... f5 {[%clk 0:01:57.8]} 37. g3 {[%clk 0:00:12]} 37... Nxg3
{[%clk 0:01:56.9]} 38. c4+ {[%clk 0:00:07.3]} 38... bxc4+ {[%clk 0:01:57.3]} 39.
Kc3 {[%clk 0:00:09.2]} 39... Ne4+ {[%clk 0:01:58.8]} 40. Kc2 {[%clk 0:00:10.6]}
40... Nd6 {[%clk 0:01:58.4]} 41. b5 {[%clk 0:00:12.5]} 41... Nxb5 {[%clk
0:01:58.2]} 42. Kd2 {[%clk 0:00:13.3]} 42... Nd4 {[%clk 0:01:58.4]} 43. Kc3
{[%clk 0:00:14.1]} 43... Ne2+ {[%clk 0:01:58.9]} 44. Kb4 {[%clk 0:00:15.9]}
44... Nxf4 {[%clk 0:02:00.8]} 45. Kc3 {[%clk 0:00:17.8]} 45... Ne6 {[%clk
0:01:57.1]} 46. Kc2 {[%clk 0:00:19.7]} 46... f4 {[%clk 0:01:58.2]} 47. Kd2
{[%clk 0:00:21.6]} 47... f3 {[%clk 0:01:58.5]} 48. Ke1 {[%clk 0:00:22.7]} 48...
c3 {[%clk 0:01:59.6]} 49. Kd1 {[%clk 0:00:24.6]} 49... f2 {[%clk 0:02:00.1]} 50.
Ke2 {[%clk 0:00:26.5]} 50... c2 {[%clk 0:02:01.5]} 51. Kxf2 {[%clk 0:00:27.8]}
51... c1=Q {[%clk 0:02:02.9]} 52. Kf3 {[%clk 0:00:29.7]} 52... Qf4+ {[%clk
0:02:02.6]} 53. Kg2 {[%clk 0:00:29.5]} 53... Nd4 {[%clk 0:02:04]} 54. Kh3 {[%clk
0:00:30.7]} 54... Qf3+ {[%clk 0:02:03.7]} 55. Kh2 {[%clk 0:00:32.6]} 55... Ne2
{[%clk 0:02:05.1]} 56. h5 {[%clk 0:00:34.5]} 56... Qg3+ {[%clk 0:02:05.5]} 57.
Kh1 {[%clk 0:00:36.2]} 57... Qg1# {[%clk 0:02:07]} 0-1

[Event "*** Qualifier 3: Titled Tuesday 3|2 Blitz"]
[Site "Chess.com"]
[Date "2017.04.18"]
[Round "5"]
[White "Saitama_Hero"]
[Black "ABDELAZEEZ-M"]
[Result "1-0"]
[WhiteElo "2173"]
[BlackElo "2126"]
[TimeControl "180+2"]
[EndTime "14:06:23 PDT"]
[Termination "Saitama_Hero won by resignation"]

1. c4 {[%clk 0:03:02]} 1... c5 {[%clk 0:02:59.4]} 2. g3 {[%clk 0:03:02.9]} 2...
Nc6 {[%clk 0:02:59.8]} 3. Bg2 {[%clk 0:03:04.8]} 3... g6 {[%clk 0:02:59.3]} 4.
Nc3 {[%clk 0:03:06.7]} 4... Bg7 {[%clk 0:03:00.6]} 5. Nf3 {[%clk 0:03:08.6]}
5... a6 {[%clk 0:03:01.1]} 6. O-O {[%clk 0:03:10.5]} 6... Rb8 {[%clk 0:03:02]}
7. e3 {[%clk 0:02:53.7]} 7... b5 {[%clk 0:03:02.3]} 8. d4 {[%clk 0:02:54.7]}
8... b4 {[%clk 0:02:53]} 9. Na4 {[%clk 0:02:53.9]} 9... cxd4 {[%clk 0:02:52.3]}
10. exd4 {[%clk 0:02:54.3]} 10... d6 {[%clk 0:02:49.1]} 11. h3 {[%clk
0:02:34.9]} 11... Bd7 {[%clk 0:02:48.7]} 12. Re1 {[%clk 0:02:34.2]} 12... Nh6
{[%clk 0:02:40.2]} 13. d5 {[%clk 0:02:33.2]} 13... Na5 {[%clk 0:02:37.4]} 14. c5
{[%clk 0:02:26.2]} 14... O-O {[%clk 0:02:31.7]} 15. c6 {[%clk 0:02:26.4]} 15...
Nxc6 {[%clk 0:02:21.3]} 16. dxc6 {[%clk 0:02:26.1]} 16... Bxc6 {[%clk
0:02:23.2]} 17. Bg5 {[%clk 0:02:17.7]} 17... Qa5 {[%clk 0:02:04.7]} 18. b3
{[%clk 0:01:37]} 18... Bxf3 {[%clk 0:02:03.6]} 19. Qd2 {[%clk 0:01:25.4]} 19...
Bxg2 {[%clk 0:02:03.3]} 20. Kxg2 {[%clk 0:01:16.2]} 20... Nf5 {[%clk 0:02:01.2]}
21. g4 {[%clk 0:01:16.5]} 21... Nd4 {[%clk 0:01:59.8]} 22. Bxe7 {[%clk
0:01:14.1]} 22... Rfe8 {[%clk 0:01:57.7]} 23. Qd3 {[%clk 0:00:55]} 23... Qd5+
{[%clk 0:01:53.5]} 24. f3 {[%clk 0:00:54.8]} 24... Be5 {[%clk 0:01:49.3]} 25.
Bh4 {[%clk 0:00:52.5]} 25... Rbc8 {[%clk 0:01:49.4]} 26. Rad1 {[%clk 0:00:51.9]}
26... Rc3 {[%clk 0:01:48]} 27. Nxc3 {[%clk 0:00:51.3]} 27... bxc3 {[%clk
0:01:46]} 28. Bf2 {[%clk 0:00:46.9]} 28... c2 {[%clk 0:01:46.2]} 29. Rc1 {[%clk
0:00:38.9]} 29... Rc8 {[%clk 0:01:27.8]} 30. Bxd4 {[%clk 0:00:37.9]} 30... Bxd4
{[%clk 0:01:20.1]} 31. Rxc2 {[%clk 0:00:36.4]} 31... Rxc2+ {[%clk 0:01:16]} 32.
Qxc2 {[%clk 0:00:38.3]} 32... Be5 {[%clk 0:01:13.2]} 33. Rd1 {[%clk 0:00:34.2]}
33... Qa5 {[%clk 0:01:13.7]} 34. a4 {[%clk 0:00:31.8]} 34... Qb4 {[%clk
0:01:14.1]} 35. Qc4 {[%clk 0:00:31]} 35... Qa3 {[%clk 0:01:13.8]} 36. Rd2 {[%clk
0:00:31.5]} 36... Qc1 {[%clk 0:01:12.9]} 37. Qxc1 {[%clk 0:00:29.7]} 1-0

[Event "*** Qualifier 3: Titled Tuesday 3|2 Blitz"]
[Site "Chess.com"]
[Date "2017.04.18"]
[Round "5"]
[White "alekroth64"]
[Black "agapov771"]
[Result "0-1"]
[WhiteElo "2260"]
[BlackElo "2433"]
[TimeControl "180+2"]
[EndTime "14:06:25 PDT"]
[Termination "agapov771 won by resignation"]

1. d4 {[%clk 0:03:02]} 1... Nf6 {[%clk 0:02:59.3]} 2. c4 {[%clk 0:03:02.5]} 2...
c6 {[%clk 0:02:57.4]} 3. Nc3 {[%clk 0:03:01.6]} 3... d5 {[%clk 0:02:54.9]} 4.
Nf3 {[%clk 0:03:03]} 4... dxc4 {[%clk 0:02:54.5]} 5. a4 {[%clk 0:03:02.8]} 5...
e5 {[%clk 0:02:54.8]} 6. Nxe5 {[%clk 0:02:59.7]} 6... Bb4 {[%clk 0:02:55.6]} 7.
Nxc4 {[%clk 0:02:54.1]} 7... Be6 {[%clk 0:02:56.4]} 8. e3 {[%clk 0:02:53.5]}
8... O-O {[%clk 0:02:56.7]} 9. Be2 {[%clk 0:02:52.3]} 9... Qe7 {[%clk
0:02:56.9]} 10. O-O {[%clk 0:02:52.6]} 10... c5 {[%clk 0:02:57.1]} 11. Ne5
{[%clk 0:02:39.1]} 11... Rd8 {[%clk 0:02:56.7]} 12. Bf3 {[%clk 0:02:39.3]} 12...
Na6 {[%clk 0:02:49.1]} 13. Qe2 {[%clk 0:02:25]} 13... cxd4 {[%clk 0:02:48.3]}
14. exd4 {[%clk 0:02:25.7]} 14... Rxd4 {[%clk 0:02:49]} 15. Nb5 {[%clk
0:02:26.3]} 15... Rdd8 {[%clk 0:02:42.4]} 16. Be3 {[%clk 0:02:20.5]} 16... Nc5
{[%clk 0:02:25.2]} 17. Bg5 {[%clk 0:01:52.8]} 17... h6 {[%clk 0:02:18.7]} 18.
Bxf6 {[%clk 0:01:18.2]} 18... Qxf6 {[%clk 0:02:18.9]} 19. Nc7 {[%clk 0:01:19]}
19... Rac8 {[%clk 0:02:17.5]} 20. Nxe6 {[%clk 0:01:18.5]} 20... Qxe6 {[%clk
0:02:14.5]} 21. Qb5 {[%clk 0:01:12.1]} 21... a5 {[%clk 0:01:59.8]} 22. Nc4
{[%clk 0:01:12.9]} 22... Nb3 {[%clk 0:01:58.3]} 23. Rad1 {[%clk 0:01:00.9]}
23... Rxd1 {[%clk 0:01:55.8]} 24. Rxd1 {[%clk 0:01:01.2]} 24... Qxc4 {[%clk
0:01:52.4]} 25. Rd8+ {[%clk 0:01:00.1]} 25... Kh7 {[%clk 0:01:52.3]} 26. Qf5+
{[%clk 0:00:56.8]} 26... g6 {[%clk 0:01:52.6]} 27. Qxc8 {[%clk 0:00:58.7]} 27...
Bc5 {[%clk 0:01:36.5]} 28. Rh8+ {[%clk 0:00:44.8]} 28... Kg7 {[%clk 0:01:36.4]}
29. Qg8+ {[%clk 0:00:46.1]} 29... Kf6 {[%clk 0:01:36.4]} 30. h4 {[%clk
0:00:36.6]} 30... Nd4 {[%clk 0:01:19.5]} 31. Qd8+ {[%clk 0:00:33.7]} 31... Be7
{[%clk 0:01:16.5]} 32. Qb8 {[%clk 0:00:27.2]} 32... Qc1+ {[%clk 0:01:09.6]} 33.
Kh2 {[%clk 0:00:27.1]} 33... Qd2 {[%clk 0:01:03.9]} 34. Re8 {[%clk 0:00:21.2]}
34... Nxf3+ {[%clk 0:01:03.3]} 35. gxf3 {[%clk 0:00:12.3]} 35... Bd6+ {[%clk
0:01:03.1]} 0-1

[Event "*** Qualifier 3: Titled Tuesday 3|2 Blitz"]
[Site "Chess.com"]
[Date "2017.04.18"]
[Round "5"]
[White "stefanodinn"]
[Black "sorito"]
[Result "0-1"]
[WhiteElo "2191"]
[BlackElo "2412"]
[TimeControl "180+2"]
[EndTime "14:06:52 PDT"]
[Termination "sorito won on time"]

1. e4 {[%clk 0:03:02]} 1... e6 {[%clk 0:03:00.1]} 2. d4 {[%clk 0:03:02.2]} 2...
d5 {[%clk 0:03:01.1]} 3. Nd2 {[%clk 0:03:03.1]} 3... Nf6 {[%clk 0:03:01.8]} 4.
e5 {[%clk 0:03:03.2]} 4... Ne4 {[%clk 0:03:03.4]} 5. Bd3 {[%clk 0:02:52.8]} 5...
Nxd2 {[%clk 0:03:04.2]} 6. Bxd2 {[%clk 0:02:53.4]} 6... c5 {[%clk 0:03:06.1]} 7.
dxc5 {[%clk 0:02:24.2]} 7... Nd7 {[%clk 0:03:05.4]} 8. Nf3 {[%clk 0:02:23.2]}
8... Nxc5 {[%clk 0:03:06.4]} 9. Be2 {[%clk 0:02:14.2]} 9... Be7 {[%clk
0:03:07.5]} 10. O-O {[%clk 0:02:14.8]} 10... O-O {[%clk 0:03:08.8]} 11. Be3
{[%clk 0:02:04.2]} 11... Bd7 {[%clk 0:03:09.6]} 12. c4 {[%clk 0:02:03.1]} 12...
dxc4 {[%clk 0:03:08.4]} 13. Bxc4 {[%clk 0:02:02.6]} 13... Bc6 {[%clk 0:03:09.9]}
14. Qe2 {[%clk 0:01:25.5]} 14... a6 {[%clk 0:02:34.9]} 15. Nd4 {[%clk
0:01:04.9]} 15... Bd5 {[%clk 0:02:32.3]} 16. Rac1 {[%clk 0:01:04.2]} 16... Rc8
{[%clk 0:02:32.7]} 17. Rfd1 {[%clk 0:01:02.2]} 17... Bxc4 {[%clk 0:02:21.6]} 18.
Qxc4 {[%clk 0:00:49.1]} 18... Nd7 {[%clk 0:01:36.4]} 19. Qb3 {[%clk 0:00:20.9]}
19... Rxc1 {[%clk 0:01:36.2]} 20. Bxc1 {[%clk 0:00:16]} 20... Nc5 {[%clk
0:01:37.3]} 21. Qf3 {[%clk 0:00:15.3]} 21... Qb6 {[%clk 0:01:35.3]} 22. g3
{[%clk 0:00:10.2]} 22... Rd8 {[%clk 0:01:34.1]} 23. b3 {[%clk 0:00:10]} 23...
Rd5 {[%clk 0:01:33.6]} 24. Be3 {[%clk 0:00:09.9]} 24... Qd8 {[%clk 0:01:34]} 25.
Kg2 {[%clk 0:00:06.4]} 25... g6 {[%clk 0:01:33.8]} 26. b4 {[%clk 0:00:05.8]}
26... Nd7 {[%clk 0:01:33.7]} 27. Rc1 {[%clk 0:00:04.3]} 27... Nxe5 {[%clk
0:01:33.7]} 28. Qe4 {[%clk 0:00:04.4]} 28... Bf6 {[%clk 0:01:28.5]} 29. Nf3
{[%clk 0:00:03.3]} 29... Nxf3 {[%clk 0:01:28.8]} 30. Qxf3 {[%clk 0:00:04.1]}
30... Be5 {[%clk 0:01:25.2]} 31. Bc5 {[%clk 0:00:03.1]} 31... h5 {[%clk
0:01:25.5]} 32. h4 {[%clk 0:00:03.5]} 32... Bg7 {[%clk 0:01:25.5]} 33. Be3
{[%clk 0:00:03.9]} 33... Qd7 {[%clk 0:01:25.6]} 34. Rc5 {[%clk 0:00:03.2]} 34...
Rxc5 {[%clk 0:01:25.8]} 35. bxc5 {[%clk 0:00:04.1]} 35... Qd5 {[%clk 0:01:26.8]}
36. Qxd5 {[%clk 0:00:03.6]} 36... exd5 {[%clk 0:01:28.7]} 37. Kf3 {[%clk
0:00:04.6]} 37... Be5 {[%clk 0:01:28.8]} 38. Ke2 {[%clk 0:00:05.1]} 38... f5
{[%clk 0:01:30]} 39. Kd3 {[%clk 0:00:05.7]} 39... Kf7 {[%clk 0:01:31.5]} 40. Bd2
{[%clk 0:00:04.2]} 40... Ke6 {[%clk 0:01:32.7]} 41. Be3 {[%clk 0:00:03.9]} 41...
Kd7 {[%clk 0:01:33.7]} 42. Bd4 {[%clk 0:00:04.1]} 42... Bc7 {[%clk 0:01:32.1]}
43. Be3 {[%clk 0:00:02.8]} 43... Kc6 {[%clk 0:01:33.4]} 44. Kd4 {[%clk
0:00:03.4]} 44... b5 {[%clk 0:01:27.6]} 0-1

[Event "*** Qualifier 3: Titled Tuesday 3|2 Blitz"]
[Site "Chess.com"]
[Date "2017.04.18"]
[Round "5"]
[White "proxy6"]
[Black "MaxLeto"]
[Result "1-0"]
[WhiteElo "2192"]
[BlackElo "2304"]
[TimeControl "180+2"]
[EndTime "14:07:03 PDT"]
[Termination "proxy6 won on time"]

1. e4 {[%clk 0:03:02]} 1... c5 {[%clk 0:02:53.1]} 2. Nf3 {[%clk 0:03:02.7]} 2...
d6 {[%clk 0:02:53.9]} 3. d4 {[%clk 0:03:04]} 3... cxd4 {[%clk 0:02:55]} 4. Nxd4
{[%clk 0:03:05.9]} 4... Nf6 {[%clk 0:02:56.5]} 5. Nc3 {[%clk 0:03:06.8]} 5... a6
{[%clk 0:02:58.1]} 6. Be3 {[%clk 0:03:07.9]} 6... Ng4 {[%clk 0:02:58.6]} 7. Bg5
{[%clk 0:03:08.3]} 7... h6 {[%clk 0:03:00.2]} 8. Bh4 {[%clk 0:03:08.5]} 8... g5
{[%clk 0:03:01.8]} 9. Bg3 {[%clk 0:03:09.3]} 9... Bg7 {[%clk 0:03:03.7]} 10. Be2
{[%clk 0:03:09]} 10... Ne5 {[%clk 0:03:03.4]} 11. O-O {[%clk 0:03:01.7]} 11...
Nbc6 {[%clk 0:03:02.9]} 12. Nb3 {[%clk 0:02:59]} 12... Ng6 {[%clk 0:03:03.4]}
13. f3 {[%clk 0:02:55.9]} 13... h5 {[%clk 0:03:03.2]} 14. Qd2 {[%clk 0:02:53.5]}
14... h4 {[%clk 0:03:02.2]} 15. Bf2 {[%clk 0:02:54.5]} 15... Nf4 {[%clk
0:03:03.2]} 16. Be3 {[%clk 0:02:51.1]} 16... Be5 {[%clk 0:02:31.3]} 17. Nd5
{[%clk 0:02:38]} 17... Nxd5 {[%clk 0:00:58.6]} 18. exd5 {[%clk 0:02:39.9]} 18...
Nb8 {[%clk 0:01:00.2]} 19. Bxg5 {[%clk 0:02:27.8]} 19... Bxb2 {[%clk 0:00:56.5]}
20. Rab1 {[%clk 0:02:27.6]} 20... Bg7 {[%clk 0:00:58]} 21. Rfe1 {[%clk
0:02:22.3]} 21... Nd7 {[%clk 0:00:52.7]} 22. Bd3 {[%clk 0:02:04.6]} 22... Nf6
{[%clk 0:00:52.4]} 23. c4 {[%clk 0:01:54.7]} 23... Kf8 {[%clk 0:00:42.7]} 24.
Re2 {[%clk 0:01:50.5]} 24... b5 {[%clk 0:00:43.3]} 25. Rbe1 {[%clk 0:01:50.3]}
25... bxc4 {[%clk 0:00:31.8]} 26. Bxc4 {[%clk 0:01:49.2]} 26... Ra7 {[%clk
0:00:33.2]} 27. Kh1 {[%clk 0:01:36.1]} 27... Bf5 {[%clk 0:00:34.2]} 28. Nd4
{[%clk 0:01:34.5]} 28... Bd7 {[%clk 0:00:06.4]} 29. Rxe7 {[%clk 0:01:25.3]}
29... Qxe7 {[%clk 0:00:07.5]} 30. Rxe7 {[%clk 0:01:26.2]} 30... Kxe7 {[%clk
0:00:09.4]} 31. Qe3+ {[%clk 0:01:26.5]} 31... Kf8 {[%clk 0:00:10.6]} 32. Nf5
{[%clk 0:01:08.6]} 32... Bxf5 {[%clk 0:00:10.1]} 33. Qxa7 {[%clk 0:01:10]} 33...
Kg8 {[%clk 0:00:05.8]} 34. Qb8+ {[%clk 0:01:02.3]} 34... Kh7 {[%clk 0:00:06.8]}
35. Qxd6 {[%clk 0:01:03.7]} 35... Kg6 {[%clk 0:00:08.5]} 36. Bf4 {[%clk
0:00:53]} 36... h3 {[%clk 0:00:09.4]} 37. g4 {[%clk 0:00:49.8]} 37... Bc2 {[%clk
0:00:07.9]} 38. g5 {[%clk 0:00:47.2]} 38... Re8 {[%clk 0:00:09.3]} 39. Kg1
{[%clk 0:00:47.8]} 39... Re1+ {[%clk 0:00:03]} 40. Kf2 {[%clk 0:00:48.6]} 1-0